[Event "*** Titled Tuesday Blitz"]
[Site "Chess.com"]
[Date "2018.10.02"]
[Round "7"]
[White "nochewycandy"]
[Black "tteshan"]
[Result "1-0"]
[WhiteElo "2166"]
[BlackElo "2026"]
[TimeControl "180+2"]
[EndTime "14:27:11 PDT"]
[Termination "nochewycandy won by resignation"]

1. e4 {[%clk 0:03:01.9]} 1... c5 {[%clk 0:03:00.4]} 2. Nf3 {[%clk 0:03:02.9]}
2... e6 {[%clk 0:03:01]} 3. b3 {[%clk 0:03:03.4]} 3... Nc6 {[%clk 0:03:01.2]} 4.
Bb5 {[%clk 0:03:01.9]} 4... Nge7 {[%clk 0:03:01.6]} 5. O-O {[%clk 0:03:02.4]}
5... a6 {[%clk 0:02:59.9]} 6. Bxc6 {[%clk 0:03:03.2]} 6... Nxc6 {[%clk
0:02:58.3]} 7. Bb2 {[%clk 0:03:04.5]} 7... f6 {[%clk 0:02:41.9]} 8. d4 {[%clk
0:03:01.1]} 8... cxd4 {[%clk 0:02:41.6]} 9. Nxd4 {[%clk 0:03:03]} 9... Bc5
{[%clk 0:02:41.4]} 10. Qh5+ {[%clk 0:02:56.7]} 10... g6 {[%clk 0:02:29.5]} 11.
Qxc5 {[%clk 0:02:57.2]} 11... b6 {[%clk 0:02:12.8]} 12. Nxc6 {[%clk 0:02:51.2]}
12... bxc5 {[%clk 0:02:05.5]} 13. Nxd8 {[%clk 0:02:52.4]} 1-0

[Event "*** Titled Tuesday Blitz"]
[Site "Chess.com"]
[Date "2018.10.02"]
[Round "7"]
[White "petrpalachev"]
[Black "Zhuu96"]
[Result "1-0"]
[WhiteElo "2790"]
[BlackElo "2877"]
[TimeControl "180+2"]
[EndTime "14:30:07 PDT"]
[Termination "petrpalachev won by resignation"]

1. d4 {[%clk 0:03:01.9]} 1... Nf6 {[%clk 0:02:57.3]} 2. Nf3 {[%clk 0:03:02]}
2... g6 {[%clk 0:02:55.4]} 3. Nbd2 {[%clk 0:03:01.9]} 3... d5 {[%clk 0:02:54.8]}
4. e3 {[%clk 0:02:54.6]} 4... Bg7 {[%clk 0:02:55.5]} 5. b4 {[%clk 0:02:55.5]}
5... O-O {[%clk 0:02:55.8]} 6. c4 {[%clk 0:02:54.3]} 6... dxc4 {[%clk
0:02:54.3]} 7. Nxc4 {[%clk 0:02:53.7]} 7... b6 {[%clk 0:02:51.4]} 8. Bb2 {[%clk
0:02:53.4]} 8... Bb7 {[%clk 0:02:50.8]} 9. Be2 {[%clk 0:02:54.7]} 9... Nbd7
{[%clk 0:02:45.4]} 10. O-O {[%clk 0:02:55.3]} 10... Ne4 {[%clk 0:02:42.2]} 11.
Nfd2 {[%clk 0:02:53.4]} 11... Nd6 {[%clk 0:02:38.2]} 12. Bf3 {[%clk 0:02:51.8]}
12... Bxf3 {[%clk 0:02:17.9]} 13. Qxf3 {[%clk 0:02:52.2]} 13... a5 {[%clk
0:02:16.4]} 14. bxa5 {[%clk 0:02:52.4]} 14... Nxc4 {[%clk 0:02:16.8]} 15. Nxc4
{[%clk 0:02:52.6]} 15... b5 {[%clk 0:02:18.3]} 16. Ne5 {[%clk 0:02:05.9]} 16...
Nxe5 {[%clk 0:02:16]} 17. dxe5 {[%clk 0:02:07.8]} 17... Rxa5 {[%clk 0:01:56.4]}
18. Rfc1 {[%clk 0:02:09.2]} 18... b4 {[%clk 0:01:49.5]} 19. Qc6 {[%clk
0:02:09.5]} 19... e6 {[%clk 0:01:38.3]} 20. Qxc7 {[%clk 0:02:08.5]} 20... Qxc7
{[%clk 0:01:28.8]} 21. Rxc7 {[%clk 0:02:10.4]} 21... Rfa8 {[%clk 0:01:30.2]} 22.
Rb7 {[%clk 0:02:06.7]} 22... Bf8 {[%clk 0:01:28.7]} 23. Bd4 {[%clk 0:02:06.8]}
23... Rxa2 {[%clk 0:01:29]} 24. Rxa2 {[%clk 0:02:06.7]} 24... Rxa2 {[%clk
0:01:29.2]} 25. g4 {[%clk 0:02:08.4]} 25... h5 {[%clk 0:01:22.3]} 26. g5 {[%clk
0:02:07.2]} 26... h4 {[%clk 0:01:22.9]} 27. h3 {[%clk 0:02:04.3]} 27... Kg7
{[%clk 0:01:24]} 28. Kg2 {[%clk 0:02:04.8]} 28... Ra1 {[%clk 0:01:19.7]} 29.
Bxa1 {[%clk 0:02:00.5]} 1-0

[Event "*** Titled Tuesday Blitz"]
[Site "Chess.com"]
[Date "2018.10.02"]
[Round "7"]
[White "HouseOfDurin"]
[Black "Caterpiller35"]
[Result "0-1"]
[WhiteElo "1781"]
[BlackElo "2311"]
[TimeControl "180+2"]
[EndTime "14:30:28 PDT"]
[Termination "Caterpiller35 won by resignation"]

1. d4 {[%clk 0:03:01.9]} 1... Nf6 {[%clk 0:03:00.6]} 2. Bg5 {[%clk 0:03:03.3]}
2... c5 {[%clk 0:03:00.3]} 3. Bxf6 {[%clk 0:03:03.7]} 3... gxf6 {[%clk
0:03:00.1]} 4. dxc5 {[%clk 0:03:02.7]} 4... Qa5+ {[%clk 0:02:59.2]} 5. Qd2
{[%clk 0:03:00.4]} 5... Qxc5 {[%clk 0:03:00.6]} 6. g3 {[%clk 0:02:55.9]} 6...
Nc6 {[%clk 0:03:01.2]} 7. Bg2 {[%clk 0:02:55.9]} 7... f5 {[%clk 0:03:02.3]} 8.
c3 {[%clk 0:02:51.4]} 8... d6 {[%clk 0:02:59.8]} 9. Nf3 {[%clk 0:02:44.9]} 9...
b5 {[%clk 0:02:59.1]} 10. Nd4 {[%clk 0:02:45]} 10... Bb7 {[%clk 0:02:58.8]} 11.
O-O {[%clk 0:01:51.6]} 11... e6 {[%clk 0:02:52.3]} 12. Rd1 {[%clk 0:01:46.9]}
12... h5 {[%clk 0:02:51.6]} 13. h4 {[%clk 0:01:46.6]} 13... O-O-O {[%clk
0:02:44.7]} 14. Nxc6 {[%clk 0:01:34.8]} 14... Bxc6 {[%clk 0:02:44.9]} 15. Bxc6
{[%clk 0:01:36.4]} 15... Qxc6 {[%clk 0:02:46.8]} 16. Qd4 {[%clk 0:01:37.5]}
16... Rg8 {[%clk 0:02:40.1]} 17. Qxa7 {[%clk 0:01:37.2]} 17... d5 {[%clk
0:02:41.4]} 18. Qxf7 {[%clk 0:01:17.9]} 18... Bc5 {[%clk 0:02:40.4]} 19. e3
{[%clk 0:01:09.2]} 19... Rdf8 {[%clk 0:02:39]} 20. Qxh5 {[%clk 0:01:07.6]} 20...
f4 {[%clk 0:02:40.1]} 21. b4 {[%clk 0:00:37.9]} 21... fxg3 {[%clk 0:02:31.5]}
22. bxc5 {[%clk 0:00:34.8]} 22... gxf2+ {[%clk 0:02:32.6]} 23. Kh2 {[%clk
0:00:18.4]} 23... Qc7+ {[%clk 0:02:25]} 24. Kh1 {[%clk 0:00:12.4]} 24... f1=Q+
{[%clk 0:02:23.2]} 0-1

[Event "*** Titled Tuesday Blitz"]
[Site "Chess.com"]
[Date "2018.10.02"]
[Round "7"]
[White "BillForster"]
[Black "Nathan_Filgueiras"]
[Result "0-1"]
[WhiteElo "1691"]
[BlackElo "2182"]
[TimeControl "180+2"]
[EndTime "14:30:30 PDT"]
[Termination "Nathan_Filgueiras won by resignation"]

1. d4 {[%clk 0:03:01.9]} 1... Nf6 {[%clk 0:03:00.4]} 2. c4 {[%clk 0:03:01.8]}
2... e6 {[%clk 0:03:01.5]} 3. Nc3 {[%clk 0:03:02.3]} 3... Bb4 {[%clk 0:03:02.1]}
4. e3 {[%clk 0:03:01.9]} 4... O-O {[%clk 0:03:02]} 5. Ne2 {[%clk 0:03:01.7]}
5... c6 {[%clk 0:03:03.2]} 6. a3 {[%clk 0:03:02.7]} 6... Ba5 {[%clk 0:03:03.9]}
7. g3 {[%clk 0:02:57.7]} 7... d5 {[%clk 0:02:59.4]} 8. cxd5 {[%clk 0:02:35]}
8... exd5 {[%clk 0:02:58.3]} 9. Bg2 {[%clk 0:02:35.9]} 9... Bf5 {[%clk
0:02:53.9]} 10. O-O {[%clk 0:02:35.5]} 10... h5 {[%clk 0:02:54.3]} 11. Nf4
{[%clk 0:02:20]} 11... h4 {[%clk 0:02:55]} 12. Qe2 {[%clk 0:02:10.5]} 12... Bc7
{[%clk 0:02:50.7]} 13. Nd3 {[%clk 0:02:07.9]} 13... Ne4 {[%clk 0:02:29.8]} 14.
Nxe4 {[%clk 0:02:04.4]} 14... dxe4 {[%clk 0:02:29.9]} 15. Nc5 {[%clk 0:01:53.6]}
15... Qe7 {[%clk 0:02:26.3]} 16. Bd2 {[%clk 0:01:37.3]} 16... b6 {[%clk
0:02:24.8]} 17. Nb3 {[%clk 0:01:31.3]} 17... Nd7 {[%clk 0:02:25.8]} 18. Bb4
{[%clk 0:01:29.4]} 18... c5 {[%clk 0:02:20.5]} 19. dxc5 {[%clk 0:01:29]} 19...
bxc5 {[%clk 0:02:22.4]} 20. Bc3 {[%clk 0:01:26.4]} 20... Ne5 {[%clk 0:02:23.9]}
21. Nd2 {[%clk 0:01:12.6]} 21... Nd3 {[%clk 0:02:13.9]} 22. Nxe4 {[%clk
0:00:57.5]} 22... Bxe4 {[%clk 0:02:05.4]} 23. Bxe4 {[%clk 0:00:55]} 23... Qxe4
{[%clk 0:02:06.8]} 24. f3 {[%clk 0:00:52.7]} 24... Qg6 {[%clk 0:02:01.9]} 25. e4
{[%clk 0:00:46.8]} 25... Nf4 {[%clk 0:01:53.4]} 0-1

[Event "*** Titled Tuesday Blitz"]
[Site "Chess.com"]
[Date "2018.10.02"]
[Round "7"]
[White "Eliwood44"]
[Black "Saitama_Hero"]
[Result "0-1"]
[WhiteElo "2166"]
[BlackElo "2244"]
[TimeControl "180+2"]
[EndTime "14:30:41 PDT"]
[Termination "Saitama_Hero won by resignation"]

1. d4 {[%clk 0:03:01.9]} 1... Nf6 {[%clk 0:02:59.7]} 2. Nf3 {[%clk 0:02:58.4]}
2... g6 {[%clk 0:03:00.2]} 3. Nc3 {[%clk 0:02:57.2]} 3... Bg7 {[%clk 0:03:02.1]}
4. e4 {[%clk 0:02:44]} 4... d6 {[%clk 0:03:04]} 5. h3 {[%clk 0:02:44.1]} 5...
O-O {[%clk 0:03:05.9]} 6. Be3 {[%clk 0:02:44]} 6... c6 {[%clk 0:03:07]} 7. a4
{[%clk 0:02:44.5]} 7... Qa5 {[%clk 0:03:04.9]} 8. Bd3 {[%clk 0:01:56.9]} 8... e5
{[%clk 0:03:06]} 9. dxe5 {[%clk 0:01:56.9]} 9... dxe5 {[%clk 0:03:06.3]} 10. O-O
{[%clk 0:01:58.5]} 10... Na6 {[%clk 0:03:06.6]} 11. Bd2 {[%clk 0:01:54.5]} 11...
Qc7 {[%clk 0:03:05.6]} 12. Bxa6 {[%clk 0:01:54.4]} 12... bxa6 {[%clk 0:03:07.5]}
13. a5 {[%clk 0:01:55.4]} 13... Be6 {[%clk 0:03:04.4]} 14. Qe2 {[%clk
0:01:34.8]} 14... Qb7 {[%clk 0:02:29.5]} 15. Rab1 {[%clk 0:01:27.5]} 15... Nd7
{[%clk 0:02:16.4]} 16. Ng5 {[%clk 0:01:17]} 16... Rfe8 {[%clk 0:02:17.1]} 17.
Nxe6 {[%clk 0:01:17.5]} 17... Rxe6 {[%clk 0:02:19]} 18. b3 {[%clk 0:01:12.4]}
18... Bf8 {[%clk 0:02:20.2]} 19. Rfd1 {[%clk 0:01:11.9]} 19... Bc5 {[%clk
0:02:20]} 20. Na4 {[%clk 0:01:10.3]} 20... Be7 {[%clk 0:02:15.1]} 21. Be3 {[%clk
0:01:08.4]} 21... Rf8 {[%clk 0:02:15.7]} 22. f3 {[%clk 0:01:08.8]} 22... f5
{[%clk 0:02:17.1]} 23. Qc4 {[%clk 0:01:05.3]} 23... Rf6 {[%clk 0:02:12.6]} 24.
Rxd7 {[%clk 0:01:05.6]} 24... Qxd7 {[%clk 0:02:12.7]} 25. Bc5 {[%clk 0:01:04]}
25... Kg7 {[%clk 0:02:11.2]} 26. Bxe7 {[%clk 0:01:04.7]} 26... Rxe7 {[%clk
0:02:12.1]} 27. Nc5 {[%clk 0:01:06.6]} 27... Qd4+ {[%clk 0:02:11.2]} 28. Qxd4
{[%clk 0:01:07.9]} 28... exd4 {[%clk 0:02:12.8]} 29. exf5 {[%clk 0:01:08.9]}
29... Rxf5 {[%clk 0:02:12.7]} 30. Nxa6 {[%clk 0:01:08.5]} 30... Rxa5 {[%clk
0:02:13.6]} 31. Nb4 {[%clk 0:01:09.8]} 31... Rc5 {[%clk 0:02:09.1]} 32. Rd1
{[%clk 0:00:47]} 32... a5 {[%clk 0:02:08.4]} 0-1

[Event "*** Titled Tuesday Blitz"]
[Site "Chess.com"]
[Date "2018.10.02"]
[Round "7"]
[White "Aklanion"]
[Black "KRASAVCHIK2002"]
[Result "1-0"]
[WhiteElo "2193"]
[BlackElo "2284"]
[TimeControl "180+2"]
[EndTime "14:31:08 PDT"]
[Termination "Aklanion won by checkmate"]

1. d4 {[%clk 0:03:01.9]} 1... Nf6 {[%clk 0:02:57.6]} 2. Nf3 {[%clk 0:03:00.2]}
2... c5 {[%clk 0:02:57.4]} 3. g3 {[%clk 0:02:59.7]} 3... cxd4 {[%clk 0:02:58.1]}
4. Nxd4 {[%clk 0:02:58.7]} 4... e5 {[%clk 0:02:58.6]} 5. Nf3 {[%clk 0:02:38.4]}
5... Nc6 {[%clk 0:02:57.8]} 6. c4 {[%clk 0:02:36.6]} 6... d5 {[%clk 0:02:47.4]}
7. cxd5 {[%clk 0:02:29.3]} 7... Qxd5 {[%clk 0:02:45.2]} 8. Qxd5 {[%clk
0:02:30.1]} 8... Nxd5 {[%clk 0:02:44.8]} 9. Bg2 {[%clk 0:02:28.8]} 9... e4
{[%clk 0:02:25]} 10. Nfd2 {[%clk 0:02:29.4]} 10... f5 {[%clk 0:02:19.8]} 11. Nc3
{[%clk 0:02:27.2]} 11... Nxc3 {[%clk 0:01:55.9]} 12. bxc3 {[%clk 0:02:28]} 12...
Be6 {[%clk 0:01:48.5]} 13. f3 {[%clk 0:02:23.8]} 13... exf3 {[%clk 0:01:40.6]}
14. Nxf3 {[%clk 0:02:25.7]} 14... Bc5 {[%clk 0:01:16.1]} 15. Ng5 {[%clk
0:02:14.5]} 15... Bc4 {[%clk 0:01:09.1]} 16. Rf1 {[%clk 0:02:11.1]} 16... O-O
{[%clk 0:01:02]} 17. Rf4 {[%clk 0:01:51.4]} 17... Ba6 {[%clk 0:00:22.5]} 18.
Bd5+ {[%clk 0:01:52]} 18... Kh8 {[%clk 0:00:23.6]} 19. Nf7+ {[%clk 0:01:43.1]}
19... Kg8 {[%clk 0:00:10.5]} 20. Ne5+ {[%clk 0:01:34.8]} 20... Kh8 {[%clk
0:00:10.4]} 21. Ng6+ {[%clk 0:01:33.9]} 21... hxg6 {[%clk 0:00:08]} 22. Rh4#
{[%clk 0:01:35.1]} 1-0

[Event "*** Titled Tuesday Blitz"]
[Site "Chess.com"]
[Date "2018.10.02"]
[Round "7"]
[White "Alex_Terzi"]
[Black "Benek77"]
[Result "0-1"]
[WhiteElo "2464"]
[BlackElo "2607"]
[TimeControl "180+2"]
[EndTime "14:31:35 PDT"]
[Termination "Benek77 won by resignation"]

1. e4 {[%clk 0:03:01.9]} 1... c5 {[%clk 0:03:00.1]} 2. Nf3 {[%clk 0:03:02.8]}
2... e6 {[%clk 0:02:59.9]} 3. d4 {[%clk 0:03:03.6]} 3... cxd4 {[%clk 0:03:01.8]}
4. Nxd4 {[%clk 0:03:05.1]} 4... Bc5 {[%clk 0:03:03.4]} 5. Nb3 {[%clk 0:03:05]}
5... Bb6 {[%clk 0:03:04.3]} 6. Nc3 {[%clk 0:03:05.8]} 6... Ne7 {[%clk
0:03:04.6]} 7. Be2 {[%clk 0:02:59.4]} 7... O-O {[%clk 0:03:05.4]} 8. O-O {[%clk
0:02:59.8]} 8... f5 {[%clk 0:03:06.3]} 9. exf5 {[%clk 0:02:47.3]} 9... Nxf5
{[%clk 0:03:08.2]} 10. Nb5 {[%clk 0:02:30.3]} 10... d5 {[%clk 0:03:06.4]} 11. c4
{[%clk 0:02:30.2]} 11... Nc6 {[%clk 0:02:53.2]} 12. c5 {[%clk 0:02:16.6]} 12...
Bc7 {[%clk 0:02:52.2]} 13. Nxc7 {[%clk 0:02:17.4]} 13... Qxc7 {[%clk 0:02:53.8]}
14. Re1 {[%clk 0:02:09.3]} 14... a5 {[%clk 0:02:38.8]} 15. a4 {[%clk 0:02:09.1]}
15... Nh4 {[%clk 0:02:21.9]} 16. Bd3 {[%clk 0:02:02.7]} 16... Qf7 {[%clk
0:02:04]} 17. Re2 {[%clk 0:01:49.7]} 17... e5 {[%clk 0:01:39.4]} 18. Bg5 {[%clk
0:01:48.7]} 18... Nxg2 {[%clk 0:01:32.8]} 19. Rd2 {[%clk 0:00:42.8]} 19... Nf4
{[%clk 0:01:31.1]} 20. Bxf4 {[%clk 0:00:31.2]} 20... Qxf4 {[%clk 0:01:31.4]} 21.
Bf1 {[%clk 0:00:22.3]} 21... e4 {[%clk 0:01:30.9]} 22. Re2 {[%clk 0:00:14.6]}
22... Bg4 {[%clk 0:01:30.7]} 23. Qxd5+ {[%clk 0:00:14.9]} 23... Kh8 {[%clk
0:01:28.1]} 24. Rd2 {[%clk 0:00:15.6]} 24... Bf3 {[%clk 0:01:22]} 25. h3 {[%clk
0:00:14.6]} 25... Rf5 {[%clk 0:01:21.7]} 26. Qd6 {[%clk 0:00:13.7]} 26... Rg5+
{[%clk 0:01:22.4]} 0-1

[Event "*** Titled Tuesday Blitz"]
[Site "Chess.com"]
[Date "2018.10.02"]
[Round "7"]
[White "hurricane7791"]
[Black "Last7Samurai"]
[Result "1-0"]
[WhiteElo "2702"]
[BlackElo "2733"]
[TimeControl "180+2"]
[EndTime "14:32:04 PDT"]
[Termination "hurricane7791 won by resignation"]

1. d4 {[%clk 0:03:01.9]} 1... f5 {[%clk 0:02:59]} 2. c4 {[%clk 0:03:02.3]} 2...
Nf6 {[%clk 0:02:59.9]} 3. Nc3 {[%clk 0:03:03.9]} 3... d6 {[%clk 0:03:01]} 4. Bg5
{[%clk 0:03:05.3]} 4... Nbd7 {[%clk 0:03:02]} 5. Qc2 {[%clk 0:03:06.8]} 5... g6
{[%clk 0:03:03.1]} 6. O-O-O {[%clk 0:03:07.2]} 6... Bg7 {[%clk 0:03:03.9]} 7. h4
{[%clk 0:03:08.7]} 7... h6 {[%clk 0:03:01]} 8. Bf4 {[%clk 0:03:07.5]} 8... c6
{[%clk 0:02:58.6]} 9. e4 {[%clk 0:03:03.4]} 9... fxe4 {[%clk 0:02:43]} 10. Nxe4
{[%clk 0:03:02.4]} 10... Nxe4 {[%clk 0:02:28.5]} 11. Qxe4 {[%clk 0:03:04.3]}
11... O-O {[%clk 0:02:29.2]} 12. Bg3 {[%clk 0:03:01.9]} 12... Qa5 {[%clk
0:01:59.6]} 13. a3 {[%clk 0:02:57.6]} 13... Nf6 {[%clk 0:01:56]} 14. Qc2 {[%clk
0:02:53.9]} 14... Bf5 {[%clk 0:01:44.7]} 15. Bd3 {[%clk 0:02:54.9]} 15... Bxd3
{[%clk 0:01:45.8]} 16. Qxd3 {[%clk 0:02:56.8]} 16... b5 {[%clk 0:01:46.9]} 17.
Nf3 {[%clk 0:02:48.4]} 17... bxc4 {[%clk 0:01:46.2]} 18. Qxc4+ {[%clk
0:02:50.3]} 18... Nd5 {[%clk 0:01:45.4]} 19. Rhe1 {[%clk 0:02:48.8]} 19... Kh7
{[%clk 0:01:44.1]} 20. Re6 {[%clk 0:02:46.6]} 20... Rab8 {[%clk 0:01:40.2]} 21.
Qc2 {[%clk 0:02:42.4]} 21... Rf6 {[%clk 0:01:39.3]} 22. Rde1 {[%clk 0:02:37.1]}
22... c5 {[%clk 0:01:14.9]} 23. Rxf6 {[%clk 0:02:22.8]} 23... Nxf6 {[%clk
0:01:01.9]} 24. Rxe7 {[%clk 0:02:19.7]} 24... cxd4 {[%clk 0:01:02.5]} 25. Nxd4
{[%clk 0:02:12.1]} 25... Nh5 {[%clk 0:00:51]} 26. Nc6 {[%clk 0:01:51.4]} 26...
Qb5 {[%clk 0:00:35.3]} 27. Nxb8 {[%clk 0:01:51.3]} 27... Qf1+ {[%clk 0:00:36.9]}
28. Qd1 {[%clk 0:01:47.8]} 28... Qc4+ {[%clk 0:00:35.2]} 29. Kb1 {[%clk
0:01:46.6]} 29... Qb5 {[%clk 0:00:34.8]} 30. Rxg7+ {[%clk 0:01:45.5]} 30... Nxg7
{[%clk 0:00:29.2]} 31. Bxd6 {[%clk 0:01:46.4]} 31... Nf5 {[%clk 0:00:29.9]} 32.
Bf4 {[%clk 0:01:41]} 32... Ng7 {[%clk 0:00:10.1]} 33. g4 {[%clk 0:01:35.4]}
33... h5 {[%clk 0:00:07.5]} 34. Nd7 {[%clk 0:01:33.6]} 34... hxg4 {[%clk
0:00:07.4]} 35. Nf6+ {[%clk 0:01:34.9]} 35... Kh8 {[%clk 0:00:08.4]} 36. Qd8+
{[%clk 0:01:35.8]} 1-0

[Event "*** Titled Tuesday Blitz"]
[Site "Chess.com"]
[Date "2018.10.02"]
[Round "7"]
[White "StoreySniper"]
[Black "ChristopherYoo"]
[Result "0-1"]
[WhiteElo "2411"]
[BlackElo "2360"]
[TimeControl "180+2"]
[EndTime "14:32:08 PDT"]
[Termination "ChristopherYoo won by resignation"]

1. c4 {[%clk 0:03:01.1]} 1... Nf6 {[%clk 0:03:00.8]} 2. g3 {[%clk 0:03:01.4]}
2... g6 {[%clk 0:03:01.9]} 3. Bg2 {[%clk 0:03:02.9]} 3... Bg7 {[%clk 0:03:03.2]}
4. Nc3 {[%clk 0:03:04.4]} 4... O-O {[%clk 0:03:04.6]} 5. d3 {[%clk 0:03:03.9]}
5... d6 {[%clk 0:03:02.6]} 6. h4 {[%clk 0:03:04]} 6... h5 {[%clk 0:03:01.8]} 7.
Nh3 {[%clk 0:03:04.2]} 7... c5 {[%clk 0:02:54.9]} 8. Ng5 {[%clk 0:03:04.2]} 8...
Nc6 {[%clk 0:02:49.6]} 9. Bd2 {[%clk 0:02:59.4]} 9... Bd7 {[%clk 0:02:48.5]} 10.
a3 {[%clk 0:03:00.2]} 10... Qc8 {[%clk 0:02:46.6]} 11. Rb1 {[%clk 0:02:59.7]}
11... Nd4 {[%clk 0:02:39.3]} 12. b4 {[%clk 0:02:58.4]} 12... Bc6 {[%clk
0:02:37.8]} 13. f3 {[%clk 0:02:49.3]} 13... b6 {[%clk 0:02:28.1]} 14. e3 {[%clk
0:02:38]} 14... Ne6 {[%clk 0:02:26.5]} 15. Nce4 {[%clk 0:02:29.9]} 15... Nxe4
{[%clk 0:02:21.2]} 16. dxe4 {[%clk 0:02:26.4]} 16... Nxg5 {[%clk 0:02:10.6]} 17.
hxg5 {[%clk 0:02:27.4]} 17... Qe6 {[%clk 0:02:02.2]} 18. Qb3 {[%clk 0:02:20.4]}
18... b5 {[%clk 0:01:42.5]} 19. cxb5 {[%clk 0:02:13.6]} 19... Qxb3 {[%clk
0:01:39.1]} 20. Rxb3 {[%clk 0:02:14]} 20... c4 {[%clk 0:01:40.1]} 21. bxc6
{[%clk 0:01:58.2]} 21... cxb3 {[%clk 0:01:40.2]} 22. b5 {[%clk 0:01:59.2]} 22...
Rab8 {[%clk 0:01:25]} 23. a4 {[%clk 0:01:58.3]} 23... a6 {[%clk 0:01:24.7]} 24.
c7 {[%clk 0:01:10.6]} 24... Rb7 {[%clk 0:01:17.3]} 25. Ke2 {[%clk 0:00:53.3]}
25... axb5 {[%clk 0:01:03.7]} 26. Rc1 {[%clk 0:00:49.2]} 26... Rc8 {[%clk
0:00:54]} 27. Ba5 {[%clk 0:00:33.4]} 27... b2 {[%clk 0:00:48]} 28. Rb1 {[%clk
0:00:33.8]} 28... bxa4 {[%clk 0:00:48.5]} 29. Bh3 {[%clk 0:00:26.2]} 29... e6
{[%clk 0:00:48.5]} 0-1

[Event "*** Titled Tuesday Blitz"]
[Site "Chess.com"]
[Date "2018.10.02"]
[Round "7"]
[White "AliKa2810"]
[Black "Vamostodorecto"]
[Result "1-0"]
[WhiteElo "2482"]
[BlackElo "2409"]
[TimeControl "180+2"]
[EndTime "14:32:11 PDT"]
[Termination "AliKa2810 won by checkmate"]

1. e4 {[%clk 0:03:01.9]} 1... e5 {[%clk 0:02:59.9]} 2. Nf3 {[%clk 0:03:01.1]}
2... Nc6 {[%clk 0:03:00.6]} 3. Bb5 {[%clk 0:03:02]} 3... a6 {[%clk 0:03:01]} 4.
Ba4 {[%clk 0:03:03.6]} 4... Nf6 {[%clk 0:03:00.6]} 5. O-O {[%clk 0:03:05.2]}
5... b5 {[%clk 0:03:01.7]} 6. Bb3 {[%clk 0:03:05.2]} 6... Bb7 {[%clk 0:03:03.3]}
7. c3 {[%clk 0:03:03.7]} 7... Nxe4 {[%clk 0:03:02.3]} 8. d4 {[%clk 0:02:57.1]}
8... exd4 {[%clk 0:03:04.2]} 9. Re1 {[%clk 0:02:54.6]} 9... d5 {[%clk
0:03:04.7]} 10. cxd4 {[%clk 0:02:52.9]} 10... Be7 {[%clk 0:02:50.4]} 11. Nbd2
{[%clk 0:02:51.2]} 11... O-O {[%clk 0:02:49.8]} 12. Bxd5 {[%clk 0:02:38.3]}
12... Nxf2 {[%clk 0:02:38.2]} 13. Qb3 {[%clk 0:02:31.3]} 13... Na5 {[%clk
0:02:23.4]} 14. Qe3 {[%clk 0:02:30]} 14... Ng4 {[%clk 0:01:56.1]} 15. Qxe7
{[%clk 0:02:28]} 15... Qxd5 {[%clk 0:01:55]} 16. Qxc7 {[%clk 0:02:11.2]} 16...
Rae8 {[%clk 0:01:43.6]} 17. Rxe8 {[%clk 0:01:51.5]} 17... Rxe8 {[%clk
0:01:45.5]} 18. Qxa5 {[%clk 0:01:52.3]} 18... Re1+ {[%clk 0:01:35.4]} 19. Nf1
{[%clk 0:01:36.6]} 19... Re2 {[%clk 0:01:17.8]} 20. Qc3 {[%clk 0:01:22.7]} 20...
Qe4 {[%clk 0:00:46.3]} 21. Ng3 {[%clk 0:01:11.9]} 21... Qe6 {[%clk 0:00:09]} 22.
Nxe2 {[%clk 0:01:06.4]} 22... Qxe2 {[%clk 0:00:10.9]} 23. Bf4 {[%clk 0:00:44.7]}
23... Qf2+ {[%clk 0:00:08.5]} 24. Kh1 {[%clk 0:00:45]} 24... Bxf3 {[%clk
0:00:06.4]} 25. Qc8# {[%clk 0:00:44]} 1-0

[Event "*** Titled Tuesday Blitz"]
[Site "Chess.com"]
[Date "2018.10.02"]
[Round "7"]
[White "cool4chess"]
[Black "mishanick"]
[Result "0-1"]
[WhiteElo "2191"]
[BlackElo "2850"]
[TimeControl "180+2"]
[EndTime "14:32:17 PDT"]
[Termination "mishanick won on time"]

1. e4 {[%clk 0:03:01.9]} 1... c5 {[%clk 0:02:55]} 2. Nf3 {[%clk 0:03:02.9]} 2...
d6 {[%clk 0:02:56.3]} 3. d4 {[%clk 0:03:03.9]} 3... cxd4 {[%clk 0:02:58.2]} 4.
Nxd4 {[%clk 0:03:05.3]} 4... Nf6 {[%clk 0:02:59.8]} 5. Nc3 {[%clk 0:03:06.1]}
5... a6 {[%clk 0:03:01.1]} 6. Qe2 {[%clk 0:03:07.3]} 6... e5 {[%clk 0:03:01.4]}
7. Nf5 {[%clk 0:03:08.5]} 7... Be6 {[%clk 0:03:00.4]} 8. Bg5 {[%clk 0:03:05.1]}
8... Nbd7 {[%clk 0:03:01.3]} 9. O-O-O {[%clk 0:03:05.5]} 9... h6 {[%clk
0:02:58.2]} 10. Bh4 {[%clk 0:02:56.3]} 10... Qb6 {[%clk 0:02:51.1]} 11. f4
{[%clk 0:02:31.9]} 11... Rc8 {[%clk 0:02:43.7]} 12. Bf2 {[%clk 0:01:52.6]} 12...
Qa5 {[%clk 0:02:41.9]} 13. Be1 {[%clk 0:01:53.9]} 13... exf4 {[%clk 0:02:08.1]}
14. Nxd6+ {[%clk 0:01:14.4]} 14... Bxd6 {[%clk 0:02:07.4]} 15. Rxd6 {[%clk
0:01:16.3]} 15... Qe5 {[%clk 0:02:07.6]} 16. Rd3 {[%clk 0:01:02.6]} 16... Nc5
{[%clk 0:02:06]} 17. Rf3 {[%clk 0:00:48]} 17... Nfxe4 {[%clk 0:01:59.1]} 18.
Nxe4 {[%clk 0:00:46.2]} 18... Nxe4 {[%clk 0:01:59.6]} 19. Bc3 {[%clk 0:00:45.3]}
19... Rxc3 {[%clk 0:01:33.8]} 20. Rxc3 {[%clk 0:00:42.3]} 20... O-O {[%clk
0:01:35.1]} 21. Ra3 {[%clk 0:00:39.1]} 21... Rc8 {[%clk 0:01:27.3]} 22. Qe1
{[%clk 0:00:25.4]} 22... Qd5 {[%clk 0:01:04.9]} 23. Bd3 {[%clk 0:00:23.6]} 23...
Nc5 {[%clk 0:01:04.7]} 24. Be2 {[%clk 0:00:12.6]} 24... Bf5 {[%clk 0:01:01]} 25.
Bf3 {[%clk 0:00:11.8]} 25... Nd3+ {[%clk 0:00:45.2]} 26. Rxd3 {[%clk 0:00:03.1]}
26... Qxd3 {[%clk 0:00:45.5]} 0-1